Cogmind - Beta 14 @@@ ROGUE MODE // 2024.10.31 @ 11:52:47 Player: Xellophane Result: Self-destructed Performance ------------- Evolutions (2) 1000 Regions Visited (5) 1000 Robots Destroyed (37) 185 Value Destroyed (892) 892 Prototype IDs (3) 60 Alien Tech Used (0) 0 Bonus (487) 487 TOTAL SCORE: 3624 Bonus ------- Follower Combat Kills 187 Aligned with FarCom 300 Cogmind --------- Core Integrity 381/550 Matter 237/300 Energy 160/160 System Corruption 0% Temperature Cool (0) Movement Treading (152) Location -8/Materials Parts ------- > --- POWER (1) -------- Light Nuclear Core > --- PROPULSION (3) --- Light Treads Advanced Treads > --- UTILITY (4) ------ Large Storage Unit Improved Terrain Scanner Targeting Computer Shield Generator > --- WEAPON (3) ------- Particle Cannon Particle Cannon > --- INVENTORY (15) --- Aluminum Leg Flight Unit Flight Unit Improved Heat Sink Advanced Visual Processing Unit Advanced Visual Processing Unit Terrain Scanner Improved Terrain Scanner Advanced Targeting Computer Melee Analysis Suite EM Pulse Gun Faulty Enhanced Autogun Mining Laser Signal Generator Peak State ------------ > --- POWER ------------ Light Nuclear Core > --- PROPULSION ------- Light Treads Advanced Treads > --- UTILITY ---------- Large Storage Unit Improved Terrain Scanner Targeting Computer Shield Generator > --- WEAPON ----------- Particle Cannon Particle Cannon Enhanced Autogun > --- INVENTORY -------- Aluminum Leg Flight Unit Flight Unit Advanced Visual Processing Unit Advanced Visual Processing Unit Improved Terrain Scanner Advanced Targeting Computer Melee Analysis Suite EM Pulse Gun Light Assault Rifle Mining Laser Signal Generator [Rating: 24] Favorites ----------- Power Light Ion Engine Engine Light Ion Engine Power Core Light Nuclear Core Propulsion Light Treads Treads Light Treads Leg Aluminum Leg Utility Improved Terrain Scanner Device Improved Terrain Scanner Storage Large Storage Unit Processor Targeting Computer Weapon Light Assault Rifle Energy Gun EM Pulse Gun Energy Cannon Particle Cannon Ballistic Gun Light Assault Rifle Launcher Rocket Launcher Build | -11 -10 -10 -10 -9 -8 ------- Run | Yrd Mat Min Exi Min Mat Slots Evolved 4 | . . . . . 4 Power . | . . . . . . Propulsion 1 | . . . . . 1 Utility 2 | . . . . . 2 Weapon 1 | . . . . . 1 Parts Attached 35 | 10 6 . . 2 17 Power 7 | 3 1 . . 1 2 Engine 6 | 3 1 . . 1 1 Core 1 | . . . . . 1 Reactor . | . . . . . . Propulsion 7 | 2 1 . . 1 3 Treads 6 | 2 1 . . 1 2 Leg 1 | . . . . . 1 Wheel . | . . . . . . Hover . | . . . . . . Flight . | . . . . . . Utility 5 | 2 1 . . . 2 Device 2 | 1 . . . . 1 Storage 2 | 1 1 . . . . Processor 1 | . . . . . 1 Hackware . | . . . . . . Protection . | . . . . . . Artifact . | . . . . . . Weapon 16 | 3 3 . . . 10 Energy Gun 2 | 1 . . . . 1 Energy Cannon 2 | . . . . . 2 Ballistic Gun 8 | 2 2 . . . 4 Ballistic Cannon . | . . . . . . Launcher 4 | . 1 . . . 3 Special Weapon . | . . . . . . Impact Weapon . | . . . . . . Slashing Weapon . | . . . . . . Piercing Weapon . | . . . . . . Special Melee Weapon . | . . . . . . Unidentified Prototypes 1 | . . . . . 1 Parts Lost 12 | . 2 . . 2 8 Power 4 | . 1 . . 1 2 Propulsion 3 | . 1 . . 1 1 Utility . | . . . . . . Weapon 5 | . . . . . 5 Highest Loss Streak 5 | . 1 . . 2 5 To Critical Strikes . | . . . . . . Average Slot Usage (%) 93 | . 98 100 100 93 82 Engine 10 | . 14 14 14 10 4 Core 1 | . . . . . 4 Treads 23 | . 26 28 28 25 16 Device 14 | . 14 14 14 14 16 Storage 12 | . 14 14 14 14 9 Processor 2 | . . . . . 7 Energy Gun 1 | . . . . . 4 Energy Cannon 2 | . . . . . 8 Ballistic Gun 21 | . 27 28 28 28 5 Launcher 1 | . . . . . 4 Peak Build Rating 24 | 9 9 10 10 10 24 Average Rating 11 | 7 8 9 10 9 18 On Entrance 8 | . 9 9 10 10 10 Naked Turns . | . . . . . . Heaviest Build 36 | 13 26 26 26 26 36 Greatest Support 42 | 40 40 40 40 40 42 Greatest Overweight (x) 8 | 4 1 . . 1 8 Average Overweight (x) . | . . . . . . Largest Inventory Capacity 15 | 8 15 15 15 15 15 Average Capacity 13 | 7 12 15 15 15 15 Most Carried 14 | 5 8 10 10 11 14 Average Carried 8 | 2 7 8 10 10 10 Final Capacity 15 | 8 15 15 15 15 15 Final Carried 14 | 5 7 10 10 11 14 Class Distribution -------------------- 55% | Mutant 39% | Skirmisher 5% | Scavenger-Skirmisher Dominant Class ---------------- Mutant | -10/Materials Mutant | -10/Mines Mutant | -10/Exiles Skirmisher | -9/Mines Skirmisher | -8/Materials Resources | -11 -10 -10 -10 -9 -8 ----------- Run | Yrd Mat Min Exi Min Mat Matter Collected 913 | 353 131 57 . 146 226 Remotely . | . . . . . . Salvage Created 1014 | 206 264 60 . 180 304 Parts 66 | 16 23 7 . 6 14 Haulers Intercepted . | . . . . . . Recyclers Shooed . | . . . . . . Parts Field Recycled . | . . . . . . Retrieved Matter . | . . . . . . Parts Self-Destructed . | . . . . . . Prevented . | . . . . . . Kills | -11 -10 -10 -10 -9 -8 ------- Run | Yrd Mat Min Exi Min Mat Combat Hostiles Destroyed 26 | . 10 4 . 4 8 Guns 19 | . 7 4 . 4 4 Cannons 2 | . . . . . 2 AOE 5 | . 3 . . . 2 Classes Destroyed 10 | 3 3 . . 1 3 Worker 4 | 3 . . . . 1 Builder 2 | . . . . . 2 Tunneler 3 | 3 . . . . . Recycler 1 | 1 . . . . . Watcher 1 | . 1 . . . . Swarmer 10 | . 6 4 . . . Grunt 11 | . 4 . . 3 4 Duelist 2 | . . . . 1 1 Sentry 1 | . . . . . 1 Specialist 2 | . . . . . 2 Best Kill Streak 4 | 2 4 3 . 2 4 Combat Bots Only 3 | . 3 3 . 2 2 Max Kills in Single Turn 3 | 1 3 1 . 1 2 Gunslinging . | . . . . . . Exploded 2 | . 2 . . . 1 Melee . | . . . . . . Uniques/NPCs Destroyed . | . . . . . . Combat | -11 -10 -10 -10 -9 -8 -------- Run | Yrd Mat Min Exi Min Mat Hostile Shots Fired 172 | . 80 20 . 19 53 Missed 49 | . 21 7 . 7 14 Damage Taken 1569 | . 576 101 . 193 699 Core 303 | . 100 22 . 12 169 Absorbed by Shields 87 | . . . . . 87 Regen/Repaired (Parts) 27 | . 27 . . . . Core Remaining (%) 73 | 100 . . . 46 . Volleys Fired 134 | 37 26 11 . 18 42 Largest 3 | 2 2 2 . 2 3 Hottest 156 | 40 50 40 . 40 156 Shots Fired 253 | 74 52 22 . 36 69 Gun 230 | 74 50 22 . 36 48 Cannon 10 | . . . . . 10 Launcher 13 | . 2 . . . 11 Special . | . . . . . . Kinetic 221 | 74 50 22 . 36 39 Thermal 10 | . . . . . 10 Explosive 13 | . 2 . . . 11 Electromagnetic 9 | . . . . . 9 Robot Hit Streak 21 | 5 9 7 . 10 21 Robot Miss Streak 5 | 3 4 5 . 4 2 Penetration Max . | . . . . . . Secondary Targets 4 | . 2 2 . . . Max Gunslinging Chain 1 | . 1 1 . . . Shots Hit Robots 160 | 40 32 12 . 24 52 Core Hits 83 | 16 21 6 . 12 28 Critical Kills . | . . . . . . Critical Parts Destroyed . | . . . . . . Critical Strikes . | . . . . . . Melee Attacks . | . . . . . . Impact . | . . . . . . Slashing . | . . . . . . Piercing . | . . . . . . Sneak Attacks . | . . . . . . Combat Hostiles . | . . . . . . Follow-up Attacks . | . . . . . . Damage Inflicted 2202 | 324 425 91 . 192 1170 Guns 1177 | 324 263 91 . 192 307 Cannons 185 | . . . . . 185 Explosions 840 | . 162 . . . 678 Melee . | . . . . . . Ramming . | . . . . . . Kinetic 1088 | 324 263 91 . 192 218 Thermal 223 | . . . . . 223 Explosive 802 | . 162 . . . 640 Electromagnetic 89 | . . . . . 89 Impact . | . . . . . . Slashing . | . . . . . . Piercing . | . . . . . . Highest Corruption 5 | . 5 5 5 5 . Average Corruption 4 | . 2 5 5 5 . Corruption Purged . | . . . . . . Corruption Blocked . | . . . . . . Effects 61 | . 2 9 24 26 . Message Errors 21 | . . 1 8 12 . Matter Fused 15 | . 1 3 7 4 . Heat Flow Errors 8 | . . 1 4 3 . Energy Discharges 3 | . . . 1 2 . Parts Rejected 1 | . 1 . . . . Data Loss (minor) 9 | . . 2 3 4 . Data Loss (major) 3 | . . 1 1 1 . Alerts 1 | . . 1 . . . Overload Shots . | . . . . . . Overflow Damage 11 | . . . . . 11 Projectiles . | . . . . . . Explosions 11 | . . . . . 11 Melee . | . . . . . . Knockbacks . | . . . . . . Impact . | . . . . . . Kinetic . | . . . . . . Secondary . | . . . . . . Self-Inflicted Damage . | . . . . . . Shots . | . . . . . . Rammed 1 | 1 . . . . . Targets Rammed 1 | 1 . . . . . Kicked . | . . . . . . Crushed . | . . . . . . Highest Temperature 350 | . 43 114 231 223 350 Average Temperature 81 | . 14 77 101 57 134 Received Heat Transfer 297 | . 147 . . 75 75 Effects 3 | . . . . . 3 Energy Bleed 1 | . . . . . 1 Interference 2 | . . . . . 2 Siege Activations . | . . . . . . Robots Corrupted . | . . . . . . Combat Hostiles . | . . . . . . Parts Fried . | . . . . . . Impact Corruptions . | . . . . . . Robots Melted . | . . . . . . Combat Hostiles . | . . . . . . Parts Melted 2 | . . . . 1 1 Heat Transferred 383 | . . . . . 383 Parts Sabotaged . | . . . . . . Parts Stolen . | . . . . . . Parts Stripped . | . . . . . . Power Chain Reactions 1 | . . . . . 1 Alert | -11 -10 -10 -10 -9 -8 ------- Run | Yrd Mat Min Exi Min Mat Peak Influence 155 | 35 143 132 . 138 155 Initial 19 | . . 17 . . 19 Average 44 | 18 46 113 . 32 44 Maximum Alert Level . | . . . . . . Low Security (%) 100 | 100 100 100 . 100 100 Level 1 . | . . . . . . Level 2 . | . . . . . . Level 3 . | . . . . . . Level 4 . | . . . . . . Level 5 . | . . . . . . High Security . | . . . . . . Max Security . | . . . . . . Squads Dispatched 5 | . 1 1 . . 3 Investigation . | . . . . . . Extermination . | . . . . . . Reinforcement 4 | . 1 . . . 3 Assault 1 | . . 1 . . . Garrison . | . . . . . . Intercept . | . . . . . . Searches Triggered . | . . . . . . Construction Impeded 2 | . . . . . 2 Haulers Reinforced . | . . . . . . Active Scanning Responses . | . . . . . . Cargo Convoy Interrupts . | . . . . . . Stealth | -11 -10 -10 -10 -9 -8 --------- Run | Yrd Mat Min Exi Min Mat Distress Signals 2 | . 1 . . . 1 Communications Jammed . | . . . . . . Distress Signals . | . . . . . . Times Spotted 47 | . 21 3 . 11 12 Peak Tracking Total 4 | . 4 2 . 3 3 Tactical Retreats 2 | . 1 1 . . . Traps | -11 -10 -10 -10 -9 -8 ------- Run | Yrd Mat Min Exi Min Mat Traps Triggered 3 | . 3 . . . . Indirectly . | . . . . . . Trap Hack Attempts . | . . . . . . Triggered . | . . . . . . Disarmed . | . . . . . . Reprogrammed . | . . . . . . Reused . | . . . . . . Traps Extracted . | . . . . . . Installed . | . . . . . . Triggered . | . . . . . . Machines | -11 -10 -10 -10 -9 -8 ---------- Run | Yrd Mat Min Exi Min Mat Machines Disabled 3 | . . . . . 3 Max in Single Turn 1 | . . . . . 1 Machines Repaired . | . . . . . . Machines Dismantled . | . . . . . . Machines Sabotaged . | . . . . . . Overloaded Fab Kills . | . . . . . . Hacking | -11 -10 -10 -10 -9 -8 --------- Run | Yrd Mat Min Exi Min Mat Machines Accessed 6 | . 4 . . . 2 Terminals 4 | . 2 . . . 2 Fabricators . | . . . . . . Repair Stations 1 | . 1 . . . . Recycling Units 1 | . 1 . . . . Scanalyzers . | . . . . . . Garrison Access . | . . . . . . Total Hacks 17 | . 12 . . . 5 Successful 9 | . 6 . . . 3 Failed 8 | . 6 . . . 2 Catastrophic 3 | . 3 . . . . Database Lockouts . | . . . . . . Manual 3 | . 3 . . . . Terminals 10 | . 5 . . . 5 Fabricators . | . . . . . . Repair Stations 4 | . 4 . . . . Recycling Units 3 | . 3 . . . . Scanalyzers . | . . . . . . Garrison Access . | . . . . . . Terminal Hacks 4 | . 1 . . . 3 Prototype ID Bank 1 | . . . . . 1 Locate Traps 1 | . . . . . 1 Reinforcement Status 1 | . . . . . 1 Recall Investigation 1 | . 1 . . . . Fabricator Hacks . | . . . . . . Repair Station Hacks 2 | . 2 . . . . Scan Component 1 | . 1 . . . . Repair 1 | . 1 . . . . Recycling Unit Hacks 3 | . 3 . . . . Process 1 | . 1 . . . . Report Inventory 1 | . 1 . . . . Retrieve Matter 1 | . 1 . . . . Scanalyzer . | . . . . . . Garrison Access Hacks . | . . . . . . Unauthorized Hacks . | . . . . . . Terminals . | . . . . . . Fabricators . | . . . . . . Repair Stations . | . . . . . . Recycling Units . | . . . . . . Scanalyzers . | . . . . . . Garrison Access . | . . . . . . Data Cores Recovered . | . . . . . . Used . | . . . . . . Hacking Detections 5 | . 3 . . . 2 Full Trace Events 3 | . 2 . . . 1 Feedback Events . | . . . . . . Feedback Blocked . | . . . . . . Robot Schematics Acquired . | . . . . . . Robots Built . | . . . . . . Authchips . | . . . . . . Time . | . . . . . . Total Robot Build Rating . | . . . . . . Part Schematics Acquired . | . . . . . . Parts Built . | . . . . . . Authchips . | . . . . . . Time . | . . . . . . Total Part Build Rating . | . . . . . . Parts Repaired 1 | . 1 . . . . Time 26 | . 26 . . . . Parts Recycled . | . . . . . . Recycled Matter 37 | . 37 . . . . Retrieved Matter 37 | . 37 . . . . Retrieved Components . | . . . . . . Parts Scanalyzed . | . . . . . . Part Schematics Acquired . | . . . . . . Parts Damaged . | . . . . . . Bothacking | -11 -10 -10 -10 -9 -8 ------------ Run | Yrd Mat Min Exi Min Mat Used RIF Installer . | . . . . . . Robots Hacked . | . . . . . . Non-combat . | . . . . . . Combat . | . . . . . . Robot Hacks Applied . | . . . . . . Relay Couplers Released . | . . . . . . Fabnet Peak Effective % . | . . . . . . Robots Rewired . | . . . . . . Allies Hacked . | . . . . . . Hacks Repelled . | . . . . . . Allies | -11 -10 -10 -10 -9 -8 -------- Run | Yrd Mat Min Exi Min Mat Total Allies 1 | . . 1 . . . Largest Group 1 | . . 1 1 1 . Highest-Rated Group 31 | . . 31 31 31 . Highest-Rated Ally 31 | . . 31 31 31 . Total Orders . | . . . . . . Ally Attacks 22 | . . . . 22 . Total Damage 399 | . . . . 399 . Kills 7 | . . . . 7 . Allies Corrupted . | . . . . . . Allies Melted . | . . . . . . Intel | -11 -10 -10 -10 -9 -8 ------- Run | Yrd Mat Min Exi Min Mat Robot Analysis Total . | . . . . . . Derelict Logs Recovered 2 | . . 1 . 1 . Drone Launches . | . . . . . . Drone Recoveries . | . . . . . . Exploration | -11 -10 -10 -10 -9 -8 ------------- Run | Yrd Mat Min Exi Min Mat Turns Passed 5650 | 404 1370 344 984 1198 1350 Spaces Moved 2714 | 172 764 196 589 665 328 Core 35 | 33 . . . . 2 Treads 2679 | 139 764 196 589 665 326 Legs . | . . . . . . Wheels . | . . . . . . Hover . | . . . . . . Flight . | . . . . . . Fastest Speed 50 | 50 160 160 160 160 152 Average Speed 166 | 166 164 160 160 171 177 Slowest Speed 450 | 250 240 160 160 240 450 Overloaded Moves . | . . . . . . Propulsion Burnouts . | . . . . . . Robots Hopped . | . . . . . . Cave-ins Triggered . | . . . . . . Exploration Rate (%) 62 | 10 98 65 91 96 13 Regions Visited 5 Branch Regions 3 Pre-discovered Areas 2 | . . 1 . 1 . Known Exits Taken . | . . . . . . Unknown Exits Taken 5 | 1 1 1 1 1 . Scrap Searched 5 | . . 2 . 3 . Spaces Dug . | . . . . . . Terrain Destroyed 47 | . 17 . . . 30 Melee . | . . . . . . Projectile . | . . . . . . AOE 47 | . 17 . . . 30 Terrain Rammed . | . . . . . . Walls Destroyed . | . . . . . . Machines Disabled . | . . . . . . Actions | -11 -10 -10 -10 -9 -8 --------- Run | Yrd Mat Min Exi Min Mat Total 3629 | 225 836 209 631 692 1036 Wait 717 | 1 31 . 43 6 636 Move 2709 | 171 763 195 588 664 328 Hop . | . . . . . . Pick Up 27 | 5 7 3 . 2 10 Fast Attach 13 | 7 1 . . 1 4 Attach 13 | . 2 . . 1 10 Detach 3 | . . . . . 3 Swap 9 | 3 3 . . . 3 Drop 3 | . 3 . . . . Fire 134 | 37 26 11 . 18 42 Melee . | . . . . . . Ram . | . . . . . . Kick . | . . . . . . Crush 1 | 1 . . . . . Escape Stasis . | . . . . . . Rewire . | . . . . . . Trap . | . . . . . . Miscellaneous . | . . . . . . Route ------- -11/Scrapyard -10/Materials (discovered 4 exits: [*Mat x3] / [*Min]) -10/Mines (discovered 3 exits: [*Mat x2] / *Exi) -10/Exiles (discovered 2 exits: [*Min x2]) -9/Mines (discovered 2 exits: *Mat x2) -8/Materials History --------- Turn | Location | Event 20 | -11/Scrapyard | Discovered new exit (range 16) 405 | -11/Scrapyard | Entered Materials 406 | -10/Materials | Build established: Mutant 589 | -10/Materials | Discovered new exit (range 13) 611 | -10/Materials | Repaired Lgt. Ion Engine 1111 | -10/Materials | Discovered new exit (range 15) 1448 | -10/Materials | Discovered new exit (range 15) 1745 | -10/Materials | Discovered new exit (range 7) 1775 | -10/Materials | Entered Mines 1901 | -10/Mines | Assembled infested the area 1979 | -10/Mines | Discovered new exit (range 9) 1992 | -10/Mines | Discovered new exit (range 10) 2016 | -10/Mines | Met 8R-AWN 2046 | -10/Mines | Learned location of Zion (-7) 2068 | -10/Mines | Met a Derelict testing a Signal Generator 2086 | -10/Mines | Found Signal Generator 2113 | -10/Mines | Discovered new exit (range 5) 2119 | -10/Mines | Entered Exiles 2119 | -10/Exiles | Accompanied by 1 ally 2163 | -10/Exiles | Welcomed by 8R-AWN 2214 | -10/Exiles | Learned about 8R-AWN's background 2274 | -10/Exiles | Discovered new exit (range 15) 2351 | -10/Exiles | Met EX-HEX 2415 | -10/Exiles | Met EX-DEC 2471 | -10/Exiles | Visited The Gauntlet 2734 | -10/Exiles | Discovered new exit (range 12) 2862 | -10/Exiles | Met EX-BIN 2881 | -10/Exiles | Aligned with FarCom system 2882 | -10/Exiles | Given EX-Vault access code 3103 | -10/Exiles | Entered Mines 3103 | -9/Mines | Accompanied by 1 ally 3321 | -9/Mines | Core integrity fell below 50% 3351 | -9/Mines | Learned Materials terminal intel 3392 | -9/Mines | Build established: Skirmisher 3879 | -9/Mines | Received a Rocket Launcher from a helpful Derelict 4053 | -9/Mines | Discovered new exit (range 7) 4054 | -9/Mines | Learned location of Storage (-7) 4199 | -9/Mines | Discovered new exit (range 7) 4301 | -9/Mines | Entered Materials 4301 | -8/Materials | Evolved 4 slots: Propulsion x1, Utility x2, Weapon x1 4302 | -8/Materials | Loaded intel: 12 terminal locations 4402 | -8/Materials | Lost 5 parts (1p1n3w) 5651 | -8/Materials | Self-destructed Last Messages --------------- 04995_ Rocket Launcher destroyed. 04995_ Lgt. Ion Engine destroyed. 04997_ X-57 Shotgunner destroyed. 04998_ U-05 Engineer builds a Wall. 05000_ U-05 Engineer lays Concrete. 05002_ U-05 Engineer builds a Wall. 05005_ U-05 Engineer lays Concrete. 05271_ R-06 Scavenger collects Terrain Scan Processor. 05290_ G-47 Trooper destroyed. 05293_ Lgt. Assault Rifle destroyed. 05296_ Overheating: System interference. 05296_ Particle Cannon temporarily disabled. 05296_ Imp. Terrain Scanner temporarily disabled. 05302_ Overheating: Energy bleed (-16). 05302_ Lgt. Nuclear Core melted. 05302_ G-47 Trooper destroyed. 05327_ Acquired 54 matter. 05329_ Acquired 46 matter. 05333_ Acquired Imp. Heat Sink. 05342_ Acquired Unknown Device. Map ----- +----------------------------------------------------+ | ????????? ???????########### #???? | | ??????????????#??# T # #???? | | ?????????????????# # #???? | | ???????????####### # #???? | | ???????????# ## """ """ + #???? | | ???????????# ! ## """ """ # ##??# | | ???????????# ## """ """ # ##?#? | | ??#??????#?# !! ## # ###?? | | ???????????# ! ## #s s ##?# | | ???????????# ############### #??? | | ?????????### #??#??#?#?????# ##?? | | ?????????# + ########??#???# ##?? | | ???????#?# # ###########?### #?## | | ?# ##### ############"T"##### #?## | | ?#^ ^ ! /#??? | | ?# ^ ###? | | ?# """ """ = #?## | | ?# """"" """""% #### | | ?# """"" """" ###?# | | ?# """"" """" #?##? | | ????? """ "" [ ##### | | ??? % ##### | | ??? ##?## | | ???? ?#############+####### ####? | | ????? ? ?"T" # # = ####+##+##### | | ???? ????? ###= ##@ ###?# | | ????????? ? ? ### ## ##??# | | ???? ???#???#?### ##""" =###?# | | ??????#?##?#?#?## ##""" ###?# | | ?? ??????##?#??## ##""" =#?### | | ???? ??????????########## ##?#? | | ????????#?????#?###?###?########?#?# | | ?? ???" ?#####??##?#####??##??##???? | | ????????##?#???#?#?####?#?##????#??? | | "T"???? #???#??##?###???##?#??##??## | | """??????????##########?##?##??#?##? | | ???????????????#??###??????###?####? | | ??????????#???##?#?##??#??#??##??### | | ??????????????##?#?#?######??#??#??? | | ?????????#???????####?####?#??##?#?# | | ?????????????##???#??????#??#??????? | | ?????????????????????????#????????#? | | ??????????????#??????????#????#????? | | ????????????????????#?????#????????? | | ???????????????????????????????????? | | ???????????????????????????????????? | | ???????????????????????????????????? | | ???????????????????????????????????? | | ???????????????????????????????????? | | ???????????????????????????????????? | +----------------------------------------------------+ Best States ------------- Heat Dissipation 31 Energy Generation 14 Energy Capacity 250 Matter Stores 300 Matter Capacity 300 Sight Range 16 Terrain Scan Range 16 Terrain Scan Density 10 Evasion (%) 40 Targeting Accuracy 5 Recoil Reduction 2 Item Schematics ----------------- None Robot Schematics ------------------ None Fabricated ------------ Nothing Alien Tech Used ----------------- None Achievements -------------- Tourist Challenges ------------ None Game ------ Seed PointyDispersionRedirector Manual? 0 Play Time 00:53:52 Cumulative 3.4 hours Start 2024.10.31 @ 00:20:24 End 2024.10.31 @ 11:52:47 Sessions 3 Manual Loads 0 Difficulty Rogue Special Mode None Game No. 6 Rogue 6 Adventurer 0 Explorer 0 Win Type - Total 0 Types 0/0/0/0/0/0/0/0/0 Lore% 1 Gallery% 5 Achievement% 6 Wizard Run 0 Options --------- Layout 0 ASCII 0 Keyboard 1 Movement Numpad Keybinds 0 Fullscreen 2 Font 18/SmallcapsGlow Map View 76x50 Zoom Use 0% Tactical HUD 1 Map Filters NONE Filters NONE Steam 1 RUN: 16eb402b-5cfa-4072-89fa-3c7f2df50bff